bitfinex/quotes_SOLUSD_20250217
["timestamp","ask_amount","ask_price","bid_price","bid_amount"]
[1739771705389,10.22334297,183.99,183.97,0.063]
[1739771705775,10.22334297,183.98,183.97,0.063]
[1739771705963,10.22334297,183.99,183.97,0.063]
[1739771706163,10.22334297,183.98,183.97,0.063]
[1739771706586,15.65864297,183.98,183.97,0.063]
[1739771706975,15.65864297,183.98,183.92,0.063]
[1739771707175,10.22334297,183.96,183.92,0.063]
[1739771708390,15.65924297,183.96,183.92,0.063]
[1739771708774,10.22334297,183.96,183.92,0.063]
[1739771708984,10.22334297,183.97,183.92,10.28634297]
[1739771709997,15.65894297,183.97,183.92,10.28634297]
[1739771710194,3.2097,184.0,183.93,10.22334297]
[1739771710383,13.43304297,184.0,183.95,10.22334297]
[1739771710591,13.43304297,184.0,183.99,10.22334297]
[1739771710592,3.2097,184.0,183.99,10.22334297]
[1739771712674,3.2097,184.0,183.99,15.96779669]
[1739771712971,3.2097,184.0,183.98,15.96779669]
[1739771714083,3.2097,184.0,183.97,15.96779669]
[1739771716202,3.2097,184.0,183.97,16.03079669]
[1739771720198,0.03,184.0,183.97,21.46639669]
[1739771720704,0.03,184.0,183.97,16.03079669]
[1739771721204,0.03,184.0,183.97,0.063]
[1739771728018,15.96779669,183.99,183.97,0.063]
[1739771729199,15.96779669,183.98,183.97,0.063]
[1739771729808,15.96779669,183.99,183.97,0.063]
[1739771730914,15.96779669,183.98,183.97,0.063]
[1739771732903,15.96779669,183.99,183.97,0.063]
[1739771734622,10.22408439,183.99,183.97,0.063]
[1739771737313,10.25408439,184.0,183.97,0.063]
[1739771739632,10.22408439,183.99,183.97,0.063]
[1739771739842,10.22408439,183.98,183.97,0.063]
[1739771741616,0.03,183.99,183.97,0.063]
[1739771741939,10.25408439,183.99,183.97,0.063]
[1739771743332,0.03,183.99,183.97,0.063]
[1739771743523,0.03,183.99,183.97,10.28708439]
[1739771743839,0.03,183.99,183.97,0.063]
[1739771745822,0.03,183.99,183.97,10.28708439]
[1739771746024,0.03,183.99,183.98,10.22408439]
[1739771746528,0.03,183.99,183.97,10.28708439]
[1739771747932,0.03,183.99,183.97,0.063]
[1739771748137,0.03,183.99,183.97,10.28708439]
[1739771749234,0.03,183.99,183.98,10.22408439]
[1739771749454,0.03,183.99,183.98,23.63593292]
[1739771750155,0.03,183.99,183.98,29.07123292]
[1739771751158,0.03,183.99,183.98,15.65938439]
[1739771752253,0.03,183.99,183.98,29.07123292]
[1739771757571,0.03,183.99,183.98,30.07123292]
[1739771758172,0.03,184.05,184.03,13.41184853]
[1739771758344,0.03,184.05,184.04,23.63593292]
[1739771759532,0.03,184.05,184.04,24.45059397]
[1739771759739,0.03,184.05,184.04,65.34693153]
[1739771760161,0.03,184.05,184.04,70.78053153]
[1739771760475,0.0001,184.05,184.04,71.78053153]
[1739771760656,13.44008439,184.18,184.12,20.0]
[1739771760858,4.7,184.17,184.12,30.22408439]
[1739771761062,13.44008439,184.18,184.12,30.22408439]
[1739771761364,10.22408439,184.14,184.08,10.22408439]
[1739771761567,10.22408439,184.14,184.09,10.22408439]
[1739771762375,10.22408439,184.14,184.09,15.65608439]
[1739771762680,10.22408439,184.16,184.1,10.22408439]
[1739771762892,10.22408439,184.16,184.11,10.22408439]
[1739771763193,10.22408439,184.17,184.11,10.22408439]
[1739771763573,13.44008439,184.18,184.12,10.22408439]
[1739771763993,13.44008439,184.18,184.12,30.22408439]
[1739771764398,3.216,184.18,184.13,10.22408439]
[1739771764902,0.03,184.16,184.14,10.22408439]
[1739771765093,0.03,184.16,184.15,10.22408439]
[1739771766497,3.53513344,184.29,184.28,2.0]
[1739771766779,83.79715206,184.37,184.33,1.0]
[1739771766982,83.79715206,184.37,184.36,10.22408439]
[1739771767205,56.66105206,184.37,184.36,11.22408439]
[1739771767490,117.31601289,184.43,184.36,26.36655547]
[1739771767696,117.31601289,184.43,184.37,16.59063986]
[1739771768360,184.24968571,184.43,184.41,20.0]
[1739771768560,184.24968571,184.43,184.38,13.41184853]
[1739771768561,184.24968571,184.43,184.42,15.89188872]
[1739771769181,184.24968571,184.43,184.42,29.30373725]
[1739771769871,123.46424886,184.43,184.42,29.30373725]
[1739771770077,91.53159488,184.43,184.42,29.30373725]
[1739771770409,59.5989409,184.43,184.42,34.72613725]
[1739771770982,10.0,184.5,184.42,34.72613725]
[1739771771182,10.0,184.5,184.46,15.89188872]
[1739771771488,25.89188872,184.5,184.44,15.89188872]
[1739771771696,15.89188872,184.49,184.43,15.89188872]
[1739771771918,25.89188872,184.5,184.44,15.89188872]
[1739771772283,15.89188872,184.47,184.43,8.38827981]
[1739771772480,15.89188872,184.46,184.43,8.38827981]
[1739771772986,15.4202,184.5,184.43,8.38827981]
[1739771773186,15.4202,184.5,184.4,16.73331389]
[1739771773187,15.89188872,184.44,184.4,1.0]
[1739771773520,15.89188872,184.45,184.41,1.0]
[1739771773897,15.89188872,184.44,184.41,1.0]
[1739771774137,15.89188872,184.44,184.38,10.08132369]
[1739771774138,15.89188872,184.44,184.42,1.0]
[1739771774287,15.89188872,184.45,184.42,1.0]
[1739771774485,11.6654,184.5,184.42,1.0]
[1739771774686,15.89188872,184.47,184.42,1.0]
[1739771775706,15.89188872,184.47,184.41,16.89188872]
[1739771776017,15.89188872,184.47,184.43,1.0]
[1739771776410,15.89188872,184.46,184.43,1.0]
[1739771776723,0.03,184.45,184.43,1.0]
[1739771776927,15.92188872,184.45,184.41,1.0]
[1739771777223,15.89188872,184.44,184.41,1.0]
[1739771778129,0.03,184.45,184.4,1.0]
[1739771778130,15.89188872,184.42,184.4,1.0]
[1739771778432,15.89188872,184.43,184.4,1.0]
[1739771778622,15.89188872,184.43,184.39,1.0]
[1739771779313,15.89188872,184.43,184.4,1.0]
[1739771779521,15.89188872,184.41,184.38,2.69304388]
[1739771779703,15.89188872,184.4,184.38,2.69304388]
[1739771780039,15.89188872,184.41,184.39,1.0]
[1739771780326,15.89188872,184.42,184.4,1.0]
[1739771780700,15.89188872,184.42,184.39,1.0]
[1739771780893,15.89188872,184.42,184.4,1.0]
[1739771781323,15.89188872,184.43,184.4,1.0]
[1739771781705,15.89188872,184.44,184.41,1.0]
[1739771782509,15.89188872,184.43,184.41,1.0]
[1739771783027,15.89188872,184.43,184.4,1.0]
[1739771783919,15.89188872,184.43,184.41,1.0]
[1739771784137,15.89188872,184.43,184.4,1.0]
[1739771784904,15.89188872,184.42,184.39,1.0]
[1739771785107,15.89188872,184.42,184.38,2.69304388]
[1739771785425,15.89188872,184.43,184.39,1.0]
[1739771785634,15.89188872,184.43,184.38,2.69304388]
[1739771785831,15.89188872,184.43,184.39,1.0]
[1739771786030,15.89188872,184.43,184.4,1.0]
[1739771786940,15.89188872,184.44,184.41,1.0]
[1739771787236,15.89188872,184.46,184.41,1.0]
[1739771788246,15.89188872,184.47,184.44,1.0]
[1739771788407,15.89188872,184.48,184.46,1.0]
[1739771789025,15.89188872,184.48,184.45,1.0]
[1739771790135,15.89188872,184.46,184.42,1.0]
[1739771790344,15.89188872,184.5,184.42,1.0]
[1739771790345,15.89188872,184.44,184.42,1.0]
[1739771790524,15.89188872,184.45,184.42,1.0]
[1739771790727,15.89188872,184.45,184.43,1.0]
[1739771790942,15.89188872,184.46,184.43,1.0]
[1739771791145,15.89188872,184.47,184.44,1.0]
[1739771791326,15.89188872,184.47,184.45,1.0]
[1739771792127,15.89188872,184.47,184.44,1.0]
[1739771792619,15.89188872,184.47,184.45,1.0]
[1739771793346,15.89188872,184.48,184.45,1.0]
[1739771793553,15.89188872,184.49,184.45,1.0]
[1739771794452,15.89188872,184.49,184.46,1.0]
[1739771794822,15.89188872,184.49,184.45,5.17735077]
[1739771795151,15.89188872,184.46,184.38,17.5849326]
[1739771795447,15.89188872,184.44,184.38,17.5849326]
[1739771796030,15.89188872,184.43,184.38,1.69304388]
[1739771796232,15.89188872,184.44,184.39,5.4232]
[1739771797443,5.4208,184.48,184.38,1.69304388]
[1739771797444,15.89188872,184.41,184.38,1.69304388]
[1739771797626,15.89188872,184.41,184.38,7.11654388]
[1739771797944,5.4208,184.48,184.38,7.11654388]
[1739771798132,15.89188872,184.42,184.38,7.11654388]
[1739771798333,15.89188872,184.41,184.38,1.69304388]
[1739771800536,15.89188872,184.38,184.32,21.31688872]
[1739771801958,5.423,184.4,184.27,13.5663]
[1739771801959,15.89188872,184.33,184.27,15.89188872]
[1739771802684,15.89188872,184.34,184.28,15.89188872]
[1739771802843,15.89188872,184.32,184.27,15.89188872]
[1739771803029,15.89188872,184.3,184.26,5.4271]
[1739771803229,15.89188872,184.3,184.24,15.89188872]
[1739771803446,15.89188872,184.31,184.25,15.89188872]
[1739771804138,15.89188872,184.31,184.26,15.89188872]
[1739771804559,15.89188872,184.31,184.25,15.89188872]
[1739771805451,15.89188872,184.32,184.26,15.89188872]
[1739771805658,15.89188872,184.31,184.26,15.89188872]
[1739771806033,15.89188872,184.32,184.26,15.89188872]
[1739771806435,15.89188872,184.27,184.2,0.063]
[1739771806644,15.89188872,184.23,184.2,0.063]
[1739771806855,15.89188872,184.24,184.15,5.4303]
[1739771807031,15.89188872,184.24,184.18,15.89188872]
[1739771807453,15.89188872,184.23,184.18,15.89188872]
[1739771807654,15.89188872,184.21,184.15,15.89188872]
[1739771807976,15.89188872,184.21,184.13,5.4307]
[1739771807977,15.89188872,184.19,184.13,15.89188872]
[1739771808482,15.89188872,184.18,184.13,15.89188872]
[1739771808852,15.89188872,184.16,184.11,15.89188872]
[1739771809080,19.17118872,184.16,184.1,15.89188872]
[1739771809243,3.2793,184.16,184.11,15.89188872]
[1739771809447,3.2793,184.16,184.12,15.89188872]
[1739771809869,3.2793,184.16,184.11,15.89188872]
[1739771810685,3.2793,184.16,184.12,15.89188872]
[1739771810977,3.2793,184.16,184.11,15.89188872]
[1739771813349,19.17118872,184.16,184.11,15.89188872]
[1739771814248,19.17118872,184.16,184.11,15.95488872]
[1739771815052,19.17118872,184.16,184.12,15.89188872]
[1739771815053,3.2793,184.16,184.12,15.89188872]
[1739771815677,3.2793,184.16,184.11,15.95488872]
[1739771815972,15.89188872,184.16,184.11,15.95488872]
[1739771816358,15.89188872,184.17,184.11,15.95488872]
[1739771816542,15.89188872,184.16,184.11,15.95488872]
[1739771816746,15.89188872,184.14,184.11,0.063]
[1739771817279,15.89188872,184.15,184.11,0.063]
[1739771817463,15.89188872,184.16,184.11,0.063]
[1739771817774,0.03,184.19,184.11,0.063]
[1739771817775,15.92188872,184.19,184.14,15.89188872]
[1739771818470,0.03,184.19,184.15,15.89188872]
[1739771819972,0.03,184.19,184.18,15.89188872]
[1739771820471,0.03,184.19,184.17,15.89188872]
[1739771821179,0.03,184.19,184.17,21.32138872]
[1739771822665,0.03,184.19,184.17,15.89188872]
[1739771822868,0.03,184.19,184.16,15.89188872]
[1739771823450,0.03,184.19,184.18,15.89188872]
[1739771824576,0.03,184.19,184.18,21.32128872]
[1739771825253,0.03,184.19,184.15,26.1289]
[1739771825254,0.03,184.19,184.17,15.89188872]
[1739771826974,0.03,184.19,184.17,21.32148872]
[1739771828279,15.89188872,184.31,184.21,20.0]
[1739771828457,15.89188872,184.31,184.24,15.89188872]
[1739771828654,15.89188872,184.29,184.23,15.89188872]
[1739771828849,15.89188872,184.27,184.21,15.89188872]
[1739771829054,15.89188872,184.25,184.19,21.32098872]
[1739771829353,15.89188872,184.22,184.16,15.89188872]
[1739771829889,15.89188872,184.23,184.17,15.89188872]
[1739771830583,3.1427,184.24,184.15,5.493]
[1739771830584,15.89188872,184.2,184.15,5.493]
[1739771830778,15.89188872,184.23,184.15,0.063]
[1739771830960,15.89188872,184.28,184.22,15.89188872]
[1739771831155,15.89188872,184.29,184.22,15.89188872]
[1739771831355,19.03458872,184.3,184.23,15.89188872]
[1739771831786,18.53458872,184.3,184.23,15.89188872]
[1739771831992,15.89188872,184.29,184.22,15.89188872]
[1739771832389,15.89188872,184.27,184.2,15.89188872]
[1739771832688,15.89188872,184.26,184.2,15.89188872]
[1739771833257,15.89188872,184.25,184.19,15.89188872]
[1739771833465,15.89188872,184.23,184.17,15.89188872]
[1739771833786,2.93623965,184.37,184.22,15.89188872]
[1739771833968,15.89188872,184.33,184.26,15.89188872]
[1739771834472,15.89188872,184.35,184.28,15.89188872]
[1739771835184,15.89188872,184.34,184.27,15.89188872]
[1739771835361,15.89188872,184.34,184.28,5.4265]
[1739771835881,15.89188872,184.34,184.28,21.31838872]
[1739771836398,15.89188872,184.34,184.28,5.4265]
[1739771836885,19.5282,184.38,184.28,5.4265]
[1739771836886,15.89188872,184.37,184.28,5.4265]
[1739771837071,15.92188872,184.38,184.31,15.89188872]
[1739771837273,15.92188872,184.38,184.32,5.4253]
[1739771837474,15.89188872,184.37,184.32,5.4253]
[1739771837785,15.89188872,184.37,184.31,21.31748872]
[1739771838360,15.89188872,184.35,184.29,15.89188872]
[1739771838560,15.89188872,184.35,184.28,15.89188872]
[1739771838773,15.89188872,184.33,184.27,15.89188872]
[1739771839169,15.89188872,184.32,184.26,15.89188872]
[1739771839892,15.89188872,184.32,184.24,5.4274]
[1739771839893,15.89188872,184.3,184.24,15.89188872]
[1739771840091,15.89188872,184.29,184.23,28.13218872]
[1739771840270,15.89188872,184.29,184.23,15.89188872]
[1739771841276,15.89188872,184.27,184.21,15.89188872]
[1739771841475,15.89188872,184.27,184.2,15.89188872]
[1739771841795,15.89188872,184.26,184.2,15.89188872]
[1739771842397,15.89188872,184.32,184.25,15.89188872]
[1739771842692,15.89188872,184.33,184.27,15.89188872]
[1739771842873,15.89188872,184.34,184.27,15.89188872]
[1739771843068,15.89188872,184.34,184.28,15.89188872]
[1739771843283,21.31658872,184.34,184.28,15.89188872]
[1739771844797,21.31658872,184.34,184.27,15.89188872]
[1739771845391,15.89188872,184.33,184.27,15.89188872]
[1739771845696,21.31698872,184.33,184.27,15.89188872]
[1739771846195,15.89188872,184.32,184.26,15.89188872]
[1739771846595,15.89188872,184.3,184.24,15.89188872]
[1739771846773,15.89188872,184.26,184.21,15.89188872]
[1739771846971,15.89188872,184.27,184.21,15.89188872]
[1739771847187,15.89188872,184.28,184.22,15.89188872]
[1739771847803,21.31828872,184.29,184.22,15.89188872]
[1739771848299,15.89188872,184.28,184.22,15.89188872]
[1739771848506,15.89188872,184.27,184.21,15.89188872]
[1739771848869,15.89188872,184.25,184.19,15.89188872]
[1739771849797,5.4247,184.34,184.22,15.89188872]
[1739771850101,15.89188872,184.34,184.28,15.89188872]
[1739771850399,15.89188872,184.34,184.23,29.30373725]
[1739771850400,19.14988872,184.35,184.29,15.89188872]
[1739771850995,19.14988872,184.35,184.25,13.41184853]
[1739771850996,0.03,184.37,184.32,15.89188872]
[1739771851473,15.89188872,184.35,184.29,15.89188872]
[1739771851987,15.89188872,184.36,184.3,15.89188872]
[1739771852699,25.46059931,184.36,184.3,25.46059931]
[1739771853803,25.46059931,184.34,184.27,25.46059931]
[1739771854103,25.46059931,184.32,184.26,25.46059931]
[1739771856196,30.88569931,184.33,184.26,25.46059931]
[1739771856588,25.46059931,184.34,184.28,25.46059931]
[1739771857083,25.46059931,184.34,184.27,25.46059931]
[1739771857327,25.46059931,184.32,184.26,25.46059931]
[1739771857985,25.46059931,184.33,184.27,25.46059931]
[1739771858816,30.88579931,184.33,184.27,25.46059931]
[1739771859798,30.88579931,184.33,184.26,25.46059931]
[1739771860196,25.46059931,184.32,184.26,25.46059931]
[1739771861305,30.88589931,184.32,184.26,25.46059931]
[1739771861630,25.46059931,184.3,184.24,25.46059931]
[1739771861912,25.46059931,184.27,184.21,25.46059931]
[1739771862705,25.49059931,184.37,184.26,25.46059931]
[1739771862886,5.454,184.37,184.31,25.46059931]
[1739771863089,25.46059931,184.36,184.29,25.46059931]
[1739771863488,25.46059931,184.36,184.3,25.46059931]
[1739771864482,25.49059931,184.37,184.3,25.46059931]
[1739771865716,25.49059931,184.37,184.35,25.46059931]
[1739771865717,0.03,184.37,184.35,25.46059931]
[1739771866014,0.03,184.37,184.36,25.46059931]
[1739771866393,0.03,184.37,184.35,25.46059931]
[1739771869513,0.03,184.37,184.34,25.46059931]
[1739771869717,0.03,184.37,184.33,25.46059931]
[1739771870014,0.03,184.37,184.32,25.46059931]
[1739771870232,0.03,184.37,184.31,25.46059931]
[1739771871606,5.4538,184.37,184.31,25.46059931]
[1739771872516,30.91439931,184.37,184.31,25.46059931]
[1739771872820,21.36585383,184.37,184.31,15.91205383]
[1739771873008,15.91205383,184.36,184.3,15.91205383]
[1739771873396,15.91205383,184.35,184.29,15.91205383]
[1739771873601,21.33675383,184.34,184.28,15.91205383]
[1739771874331,15.91205383,184.32,184.26,15.97505383]
[1739771875402,15.91205383,184.3,184.26,0.063]
[1739771875617,19.05285383,184.3,184.26,0.063]
[1739771875810,24.47905383,184.3,184.26,0.063]
[1739771877106,3.1408,184.3,184.26,0.063]
[1739771877307,15.91205383,184.34,184.28,15.91205383]
[1739771877510,21.33645383,184.35,184.29,15.91205383]
[1739771877721,5.425,184.33,184.28,15.91205383]
[1739771877903,5.425,184.33,184.27,15.91205383]
[1739771877904,21.33705383,184.33,184.27,15.91205383]
[1739771878409,15.91205383,184.34,184.28,15.91205383]
[1739771878727,15.91205383,184.33,184.27,15.91205383]
[1739771878942,15.91205383,184.34,184.28,15.91205383]
[1739771879428,5.4244,184.35,184.29,15.91205383]
[1739771879429,21.33645383,184.35,184.29,15.91205383]
[1739771879813,15.91205383,184.34,184.28,15.91205383]
[1739771880609,21.33645383,184.35,184.29,15.91205383]
[1739771880810,15.91205383,184.34,184.28,15.91205383]
[1739771881419,15.91205383,184.33,184.27,15.91205383]
[1739771881622,21.33725383,184.33,184.27,15.91205383]
[1739771881913,15.91205383,184.3,184.26,0.063]
[1739771882930,15.91205383,184.29,184.26,0.063]
[1739771883120,18.9878,184.33,184.26,0.063]
[1739771883121,15.91205383,184.28,184.26,0.063]
[1739771883316,15.91205383,184.27,184.26,0.063]
[1739771884020,21.33885383,184.27,184.26,0.063]
[1739771885934,3.07,184.28,184.26,0.063]
[1739771886228,18.98205383,184.33,184.27,15.91205383]
[1739771886436,3.07,184.33,184.29,15.91205383]
[1739771890234,3.1532,184.37,184.31,15.91205383]
[1739771890539,0.03,184.33,184.32,15.91205383]
[1739771891435,0.03,184.33,184.32,29.32390236]
[1739771892135,0.03,184.33,184.32,34.74920236]
[1739771894130,0.03,184.33,184.32,15.91205383]
[1739771894331,0.03,184.33,184.32,21.33735383]
[1739771894644,0.03,184.33,184.32,34.74920236]
[1739771897641,0.03,184.33,184.32,21.33735383]
[1739771898842,0.03,184.33,184.32,34.74920236]
[1739771899344,0.03,184.33,184.32,21.33735383]
[1739771900948,0.03,184.33,184.32,15.91205383]
[1739771901433,0.03,184.33,184.32,21.33735383]
[1739771902323,0.03,184.33,184.3,15.91205383]
[1739771902517,0.03,184.33,184.3,0.063]
[1739771902744,0.03,184.33,184.3,15.97505383]
[1739771902954,0.03,184.33,184.31,15.91205383]
[1739771904451,0.03,184.33,184.3,15.97505383]
[1739771905543,0.03,184.33,184.31,15.91205383]
[1739771906848,0.03,184.33,184.32,15.91205383]
[1739771908019,0.03,184.33,184.3,5.4887]
[1739771908020,0.03,184.33,184.3,0.063]
[1739771908221,0.03,184.33,184.3,15.97505383]
[1739771909423,18.97065383,184.32,184.3,0.063]
[1739771909921,3.0586,184.32,184.3,0.063]
[1739771910331,15.91205383,184.31,184.3,0.063]
[1739771910950,21.33765383,184.31,184.3,0.063]
[1739771911252,5.4256,184.31,184.3,0.063]
[1739771911629,21.33765383,184.31,184.3,0.063]
[1739771914939,21.36765383,184.31,184.3,0.063]
[1739771919148,5.4556,184.31,184.3,0.063]
[1739771923363,0.03,184.31,184.3,15.97505383]
[1739771924956,0.03,184.31,184.3,0.063]
[1739771926443,21.36765383,184.31,184.3,0.063]
[1739771926646,24.60995383,184.31,184.3,0.063]
[1739771926845,20.0,184.28,184.26,0.063]
[1739771927050,15.91205383,184.27,184.26,0.063]
[1739771928579,23.32125557,184.27,184.26,0.063]
[1739771930472,21.33885383,184.27,184.26,0.063]
[1739771930964,23.37231361,184.27,184.26,0.063]
[1739771931465,21.33885383,184.27,184.26,0.063]
[1739771933470,5.4268,184.27,184.26,0.063]
[1739771934549,15.91205383,184.3,184.26,0.063]
[1739771934769,15.91205383,184.27,184.26,0.063]
[1739771936073,21.33885383,184.27,184.26,0.063]
[1739771937075,21.33885383,184.27,184.16,28.45265383]
[1739771937266,15.91205383,184.21,184.16,12.5406]
[1739771938070,15.91205383,184.2,184.15,0.063]
[1739771938446,15.91205383,184.22,184.16,15.91205383]
[1739771939782,18.9948,184.26,184.15,0.063]
[1739771939783,15.91205383,184.21,184.15,0.063]
[1739771939971,15.91205383,184.21,184.15,15.97505383]
[1739771940277,5.4288,184.2,184.15,15.97505383]
[1739771940474,21.34085383,184.2,184.15,0.063]
[1739771940853,19.001,184.2,184.16,15.97505383]
[1739771941058,5.4288,184.2,184.16,15.97505383]
[1739771941258,15.91205383,184.22,184.16,15.97505383]
[1739771941456,15.91205383,184.21,184.16,0.063]
[1739771942063,15.91205383,184.22,184.16,15.97505383]
[1739771943570,15.91205383,184.21,184.15,15.91205383]
[1739771944077,15.91205383,184.21,184.16,15.91205383]
[1739771944782,15.91205383,184.21,184.16,21.34205383]
[1739771946064,15.91205383,184.21,184.16,15.91205383]
[1739771946372,15.91205383,184.21,184.15,21.34235383]
[1739771947187,15.91205383,184.2,184.15,21.34235383]
[1739771947564,15.91205383,184.23,184.17,15.91205383]
[1739771947760,15.91205383,184.24,184.19,15.91205383]
[1739771949291,15.91205383,184.23,184.18,21.34135383]
[1739771949465,15.91205383,184.26,184.2,15.91205383]
[1739771949661,15.91205383,184.27,184.21,15.91205383]
[1739771949867,15.91205383,184.25,184.2,15.91205383]
[1739771950175,15.91205383,184.22,184.17,15.91205383]
[1739771950786,15.91205383,184.23,184.17,15.91205383]
[1739771950975,15.91205383,184.23,184.17,21.34165383]
[1739771951557,15.91205383,184.22,184.17,21.34165383]
[1739771951757,15.91205383,184.22,184.16,15.91205383]
[1739771952985,15.91205383,184.22,184.16,21.34185383]
[1739771954090,21.34035383,184.22,184.16,15.91205383]
[1739771954276,15.91205383,184.23,184.17,15.91205383]
[1739771954462,15.91205383,184.25,184.19,15.91205383]
[1739771954662,19.15435383,184.28,184.22,15.91205383]
[1739771954887,86.1,184.29,184.26,15.91205383]
[1739771955096,86.1,184.29,184.19,13.41184853]
[1739771955097,0.03,184.31,184.28,28.65365383]
[1739771955283,0.03,184.31,184.28,12.7416]
[1739771955671,0.03,184.31,184.29,15.91205383]
[1739771956196,0.03,184.31,184.29,21.33825383]
[1739771957394,0.03,184.31,184.29,15.91205383]
[1739771958178,0.03,184.31,184.28,12.7416]
[1739771958179,0.03,184.31,184.28,15.91205383]
[1739771958681,0.03,184.31,184.26,15.91205383]
[1739771959283,15.94205383,184.31,184.25,15.91205383]
[1739771959888,15.94205383,184.3,184.24,15.91205383]
[1739771960088,15.94205383,184.3,184.19,12.7416]
[1739771960089,15.91205383,184.27,184.21,15.91205383]
[1739771961007,15.91205383,184.28,184.22,15.91205383]
[1739771961377,21.33855383,184.28,184.22,15.91205383]
[1739771962210,15.91205383,184.28,184.19,12.7416]
[1739771962505,21.33825383,184.29,184.23,15.91205383]
[1739771963675,15.91205383,184.28,184.22,15.91205383]
[1739771966108,21.33865383,184.28,184.22,15.91205383]
[1739771967588,15.91205383,184.29,184.23,15.91205383]
[1739771967914,0.03,184.3,184.26,15.91205383]
[1739771970417,0.03,184.3,184.25,15.91205383]
[1739771971210,15.94205383,184.3,184.24,15.91205383]
[1739771971377,15.91205383,184.28,184.22,15.91205383]
[1739771972082,5.4559,184.3,184.23,15.91205383]
[1739771972083,15.91205383,184.29,184.23,15.91205383]
[1739771972514,5.4265,184.28,184.23,15.91205383]
[1739771972715,21.33855383,184.28,184.22,15.91205383]
[1739771973791,5.4265,184.28,184.23,15.91205383]
[1739771974112,5.4265,184.28,184.24,15.91205383]
[1739771976297,5.4265,184.28,184.23,15.91205383]
[1739771977092,5.4265,184.28,184.24,15.91205383]
[1739771978906,15.94205383,184.3,184.24,15.91205383]
[1739771979106,15.91205383,184.29,184.23,15.91205383]
[1739771979606,0.03,184.3,184.23,15.91205383]
[1739771979607,15.91205383,184.28,184.23,15.91205383]
[1739771979814,0.03,184.3,184.24,1.0]
[1739771979990,0.03,184.3,184.29,29.32390236]
[1739771980992,0.03,184.3,184.29,34.75010236]
[1739771982409,0.03,184.3,184.29,21.33825383]
[1739771982615,0.03,184.33,184.32,46.08004853]
[1739771982917,0.03,184.38,184.33,13.41184853]
[1739771983118,0.03,184.38,184.36,29.32390236]
[1739771984014,0.03,184.38,184.36,30.13717651]
[1739771985218,0.03,184.38,184.36,35.56127651]
[1739771986116,0.03,184.38,184.37,13.41184853]
[1739771986304,0.03,184.38,184.37,29.32390236]
[1739771988528,0.03,184.38,184.37,15.91205383]
[1739771990136,0.03,184.38,184.37,15.97505383]
[1739771992947,0.03,184.38,184.37,0.063]
[1739771993640,13.44205383,184.41,184.37,0.063]
[1739771996242,15.91205383,184.42,184.37,0.063]
[1739771997159,15.91205383,184.43,184.37,15.97505383]
[1739771998357,19.08345383,184.45,184.39,15.91205383]
[1739771998547,3.1714,184.45,184.4,15.91205383]
[1739771999229,3.1714,184.45,184.41,15.91205383]
[1739771999432,3.1714,184.45,184.42,15.91205383]
[1739772000528,0.03,184.45,184.44,15.91205383]
[1739772000962,0.03,184.47,184.46,20.0]
[1739772001161,0.03,184.57,184.52,20.0]
[1739772001328,0.03,184.57,184.56,15.91205383]
[1739772001527,0.03,184.57,184.55,15.91205383]
[1739772001729,0.03,184.57,184.46,2.0]
[1739772001930,0.03,184.57,184.56,15.91205383]
[1739772002772,0.03,184.57,184.53,15.91205383]
[1739772003069,15.94205383,184.57,184.51,15.91205383]
[1739772003773,15.91205383,184.52,184.44,15.91205383]
[1739772004069,2.9468,184.56,184.43,5.4218]
[1739772004070,15.91205383,184.49,184.43,15.91205383]
[1739772005582,21.33215383,184.5,184.44,15.91205383]
[1739772005947,15.91205383,184.49,184.43,15.91205383]
[1739772006370,21.33275383,184.48,184.42,15.91205383]
[1739772006572,18.85885383,184.47,184.41,15.91205383]
[1739772006772,15.91205383,184.46,184.4,15.91205383]
[1739772006953,15.91205383,184.44,184.38,15.91205383]
[1739772007157,15.91205383,184.42,184.38,5.4235]
[1739772007357,15.91205383,184.45,184.39,15.91205383]
[1739772007587,15.91205383,184.46,184.4,15.91205383]
[1739772008084,18.85885383,184.47,184.41,15.91205383]
[1739772008284,15.91205383,184.45,184.39,15.91205383]
[1739772008451,15.91205383,184.43,184.37,15.97505383]